bitfinex/quotes_SOLUSD_20241105
["timestamp","ask_amount","ask_price","bid_price","bid_amount"]
[1730777936396,6.2837,159.15,159.14,0.1]
[1730777937717,6.2837,159.15,159.14,19.20285456]
[1730777937891,6.2837,159.15,159.14,0.2]
[1730777939513,6.2837,159.15,159.13,0.1]
[1730777939718,6.2837,159.15,159.13,0.2]
[1730777940609,6.2837,159.15,159.14,0.1]
[1730777940909,6.2837,159.15,159.14,0.2]
[1730777942221,6.2837,159.15,159.14,19.20285456]
[1730777943297,6.2837,159.15,159.14,12.34861058]
[1730777944122,6.593208,159.16,159.15,0.1]
[1730777944626,6.593208,159.16,159.14,0.1]
[1730777944806,6.593208,159.16,159.13,0.2]
[1730777945008,6.593208,159.16,159.15,0.1]
[1730777945624,6.593208,159.16,159.14,0.1]
[1730777945816,18.74181858,159.16,159.12,0.2]
[1730777946017,6.593208,159.16,159.15,0.1]
[1730777946424,0.25098,159.15,159.12,12.24861058]
[1730777946624,92.551588,159.16,159.13,0.1]
[1730777947020,92.551588,159.16,159.14,0.1]
[1730777947434,104.70019858,159.16,159.12,0.2]
[1730777947745,104.70019858,159.16,159.13,0.1]
[1730777947932,104.70019858,159.16,159.13,0.2]
[1730777948436,104.70019858,159.16,159.14,0.1]
[1730777948941,92.551588,159.16,159.14,0.1]
[1730777949822,92.551588,159.16,159.13,0.1]
[1730777950034,92.551588,159.16,159.14,0.1]
[1730777951525,92.551588,159.16,159.13,0.1]
[1730777952209,6.2837,159.14,159.11,12.24861058]
[1730777952425,6.2837,159.14,159.11,0.1]
[1730777953137,6.2837,159.14,159.12,0.1]
[1730777953311,6.2837,159.14,159.11,0.2]
[1730777953510,6.2837,159.14,159.12,0.1]
[1730777953909,6.2837,159.14,159.11,12.34861058]
[1730777954131,6.2837,159.14,159.13,0.1]
[1730777954319,6.2837,159.14,159.11,12.34861058]
[1730777954525,6.2837,159.14,159.12,0.1]
[1730777954722,6.2837,159.14,159.13,0.1]
[1730777954921,6.53468,159.14,159.13,0.1]
[1730777956450,6.2837,159.14,159.13,12.34861058]
[1730777957442,6.2837,159.14,159.13,0.2]
[1730777958831,6.2833,159.15,159.14,0.1]
[1730777959033,6.2833,159.15,159.12,0.1]
[1730777959240,6.2833,159.15,159.14,0.1]
[1730777962441,6.2833,159.15,159.13,0.1]
[1730777962632,6.2833,159.15,159.14,0.1]
[1730777965746,6.2833,159.15,159.14,12.34861058]
[1730777966529,6.2833,159.15,159.14,0.2]
[1730777970452,6.2833,159.15,159.14,0.1]
[1730777977844,6.2833,159.15,159.14,12.24861058]
[1730777980857,6.2833,159.15,159.14,0.1]
[1730777986468,6.2833,159.15,159.14,0.2]
[1730777991176,26.2833,159.15,159.14,0.1]
[1730777991355,26.2833,159.15,159.14,0.2]
[1730777995873,26.2833,159.15,159.14,0.1]
[1730777996453,26.2833,159.15,159.13,0.1]
[1730777996655,20.0,159.14,159.11,0.1]
[1730777996865,32.14861058,159.14,159.11,0.1]
[1730777997057,32.14861058,159.14,159.1,0.1]
[1730777997271,32.14861058,159.14,159.12,0.1]
[1730777997772,32.14861058,159.14,159.1,0.1]
[1730777997965,32.14861058,159.14,159.12,0.1]
[1730777998174,0.25098,159.13,159.1,0.2]
[1730777998469,0.25098,159.13,159.12,0.1]
[1730777998872,90.0,159.14,159.12,0.1]
[1730777999073,20.0,159.13,159.12,0.2]
[1730777999378,26.593108,159.16,159.15,0.1]
[1730778002467,26.593108,159.16,159.15,0.2]
[1730778003883,26.593108,159.16,159.14,0.1]
[1730778004085,6.593108,159.16,159.14,0.1]
[1730778004388,26.593108,159.16,159.15,0.1]
[1730778005085,0.310208,159.16,159.15,12.34861058]
[1730778005459,0.310208,159.16,159.15,0.2]
[1730778005662,6.593108,159.16,159.15,0.2]
[1730778005883,0.310208,159.16,159.15,0.2]
[1730778009577,20.0,159.15,159.14,0.1]
[1730778011493,6.2833,159.15,159.13,0.2]
[1730778011696,26.2833,159.15,159.14,0.1]
[1730778011897,20.0,159.14,159.13,0.1]
[1730778012195,20.0,159.14,159.12,0.2]
[1730778012490,20.0,159.14,159.11,0.2]
[1730778012786,32.14861058,159.14,159.11,0.2]
[1730778013295,20.25098,159.14,159.13,0.1]
[1730778013497,26.53468,159.14,159.13,0.1]
[1730778013872,26.53468,159.14,159.12,0.1]
[1730778014078,26.53468,159.14,159.13,0.1]
[1730778016193,26.53468,159.14,159.12,0.1]
[1730778016382,26.53468,159.14,159.13,0.1]
[1730778016580,26.2837,159.14,159.13,0.1]
[1730778016788,20.0,159.14,159.13,0.2]
[1730778018101,26.2837,159.14,159.13,0.2]
[1730778022290,26.2837,159.14,159.13,12.34861058]
[1730778022291,20.0,159.14,159.13,12.34861058]
[1730778022494,20.0,159.14,159.13,0.2]
[1730778023193,6.2833,159.15,159.14,0.1]
[1730778023400,26.2833,159.15,159.14,0.1]
[1730778025179,20.0,159.14,159.13,0.1]
[1730778025611,20.0,159.14,159.12,0.2]
[1730778025789,20.0,159.14,159.13,0.1]
[1730778026193,20.0,159.14,159.12,0.1]
[1730778026489,20.25098,159.12,159.11,0.1]
[1730778027586,26.53548,159.12,159.11,0.1]
[1730778028482,6.2845,159.12,159.11,0.2]
[1730778028691,26.2833,159.15,159.14,0.2]
[1730778029393,20.0,159.15,159.14,0.2]
[1730778029798,32.14861058,159.15,159.14,0.2]
[1730778031184,26.2833,159.15,159.14,0.2]
[1730778034095,6.593308,159.16,159.15,0.2]
[1730778035400,26.593308,159.16,159.15,0.2]
[1730778041525,38.74191858,159.16,159.15,0.1]
[1730778041890,38.74191858,159.16,159.15,0.2]
[1730778042487,26.593308,159.16,159.15,0.2]
[1730778042696,0.310208,159.16,159.15,0.2]
[1730778052397,0.310208,159.16,159.15,12.34861058]
[1730778052598,0.310208,159.16,159.15,18.63191058]
[1730778056318,0.310208,159.16,159.15,12.34861058]
[1730778056521,0.310208,159.16,159.15,0.2]
[1730778058026,0.310208,159.16,159.15,12.34861058]
[1730778061031,0.310208,159.16,159.15,18.63191058]
[1730778061205,0.310208,159.16,159.15,35.10261058]
[1730778063602,0.310208,159.16,159.15,35.20261058]
[1730778063806,26.2805,159.23,159.22,0.2]
[1730778065022,20.0,159.23,159.22,0.2]
[1730778065211,6.590008,159.24,159.23,0.1]
[1730778065413,20.310208,159.24,159.23,0.1]
[1730778065630,26.590008,159.24,159.23,0.1]
[1730778069804,26.590008,159.24,159.23,0.2]
[1730778070615,82.8300825,159.26,159.25,0.1]
[1730778070616,6.5496825,159.26,159.25,0.1]
[1730778070823,6.6346,159.37,159.31,0.1]
[1730778071012,12.9094,159.37,159.31,0.2]
[1730778071505,6.2754,159.35,159.31,12.34861058]
[1730778072342,6.2751,159.36,159.31,18.62561058]
[1730778075939,0.310208,159.4,159.39,0.2]
[1730778076114,0.310208,159.4,159.39,12.34861058]
[1730778077334,0.310208,159.4,159.39,18.62251058]
[1730778077939,0.310208,159.4,159.39,12.34861058]
[1730778078314,0.310208,159.48,159.47,0.2]
[1730778078524,6.580508,159.48,159.47,0.1]
[1730778079019,6.580508,159.48,159.47,0.2]
[1730778079441,26.2703,159.48,159.47,0.2]
[1730778079620,20.0,159.47,159.45,0.2]
[1730778079814,20.0,159.45,159.44,0.1]
[1730778080015,32.14861058,159.45,159.44,0.1]
[1730778080225,32.14861058,159.45,159.38,22.5293]
[1730778080226,0.25098,159.44,159.42,0.2]
[1730778080428,12.14861058,159.43,159.42,0.2]
[1730778080622,20.0,159.42,159.41,0.2]
[1730778080823,32.14861058,159.42,159.41,0.2]
[1730778081224,32.14861058,159.42,159.41,0.1]
[1730778081429,38.42131058,159.42,159.41,0.1]
[1730778081834,38.42131058,159.42,159.4,0.1]
[1730778082036,12.14861058,159.41,159.39,0.1]
[1730778082337,26.2727,159.42,159.39,0.2]
[1730778082338,32.14861058,159.4,159.39,0.2]
[1730778083829,32.14861058,159.4,159.39,0.1]
[1730778083830,38.42211058,159.4,159.39,0.1]
[1730778084440,38.42211058,159.4,159.37,0.2]
[1730778084748,12.14861058,159.38,159.37,0.1]
[1730778084961,12.14861058,159.38,159.37,0.2]
[1730778085334,12.14861058,159.38,159.37,0.1]
[1730778085748,32.14861058,159.38,159.37,0.1]
[1730778085927,32.14861058,159.38,159.37,0.2]
[1730778086356,32.14861058,159.38,159.37,0.1]
[1730778086559,32.14861058,159.38,159.37,0.2]
[1730778087048,31.64861058,159.38,159.37,0.2]
[1730778087254,32.14861058,159.38,159.37,0.1]
[1730778087933,38.42291058,159.38,159.37,0.2]
[1730778088134,20.0,159.38,159.37,0.2]
[1730778088438,26.2743,159.38,159.37,0.2]
[1730778088645,38.42291058,159.38,159.37,0.2]
[1730778089356,38.42291058,159.38,159.36,0.2]
[1730778089534,32.14861058,159.37,159.36,0.2]
[1730778090154,26.2747,159.37,159.36,0.2]
[1730778090935,38.42331058,159.37,159.36,0.2]
[1730778093167,20.0,159.37,159.36,0.2]
[1730778093345,6.2744,159.38,159.36,0.2]
[1730778093540,26.2744,159.38,159.37,0.2]
[1730778093848,38.42301058,159.38,159.37,0.2]
[1730778094764,38.42301058,159.38,159.37,0.1]
[1730778094972,38.42301058,159.38,159.37,0.2]
[1730778095266,18.42301058,159.38,159.37,0.2]
[1730778096642,18.42301058,159.38,159.36,0.2]
[1730778096843,12.14861058,159.37,159.36,0.2]
[1730778097151,12.14861058,159.37,159.36,0.1]
[1730778097745,12.14861058,159.37,159.36,0.2]
[1730778098064,18.42331058,159.37,159.36,0.2]
[1730778101860,18.42331058,159.37,159.3,15.4914]
[1730778101861,20.25098,159.36,159.35,0.1]
[1730778102071,20.25098,159.36,159.34,0.1]
[1730778102072,32.39959058,159.36,159.34,0.1]
[1730778102255,32.39959058,159.36,159.35,0.1]
[1730778104645,32.39959058,159.36,159.34,0.1]
[1730778104871,26.52608,159.36,159.35,0.1]
[1730778105051,38.67469058,159.36,159.35,0.1]
[1730778106449,38.42371058,159.36,159.35,0.2]
[1730778108073,38.42371058,159.36,159.35,0.1]
[1730778108276,38.42371058,159.36,159.35,0.2]
[1730778108661,38.42371058,159.36,159.35,0.1]
[1730778108866,38.42371058,159.36,159.35,0.2]
[1730778109055,38.42371058,159.36,159.35,0.1]
[1730778109369,38.42371058,159.36,159.35,0.2]
[1730778110173,18.42371058,159.36,159.35,0.2]
[1730778113481,18.42371058,159.36,159.34,0.1]
[1730778113788,12.14861058,159.35,159.34,0.1]
[1730778113984,12.39959058,159.35,159.34,0.1]
[1730778114573,12.14861058,159.35,159.34,0.2]
[1730778115565,18.42401058,159.35,159.34,0.2]
[1730778115766,18.42401058,159.35,159.34,0.1]
[1730778115978,18.42401058,159.35,159.34,0.2]
[1730778121291,18.42401058,159.35,159.34,0.1]
[1730778121887,18.67499058,159.35,159.32,0.2]
[1730778122201,18.67499058,159.35,159.32,0.1]
[1730778122202,12.14861058,159.33,159.32,0.1]
[1730778122401,20.25098,159.32,159.3,0.1]
[1730778122584,12.14861058,159.31,159.29,0.1]
[1730778122789,12.14861058,159.3,159.27,0.2]
[1730778122989,12.14861058,159.29,159.28,0.1]
[1730778123396,18.42641058,159.29,159.28,0.2]
[1730778124575,18.42641058,159.29,159.28,0.1]
[1730778124799,18.42641058,159.29,159.28,0.2]
[1730778124997,18.42641058,159.29,159.27,0.1]
[1730778125201,12.14861058,159.28,159.26,0.2]
[1730778125498,12.14861058,159.27,159.25,0.2]
[1730778125682,20.25098,159.28,159.27,0.1]
[1730778126072,20.0,159.31,159.3,0.1]
[1730778126285,26.277,159.31,159.3,0.1]
[1730778126888,38.42561058,159.31,159.3,0.1]
[1730778127300,6.277,159.31,159.3,0.2]
[1730778127713,18.42441058,159.34,159.33,0.2]
[1730778127987,6.2758,159.34,159.33,0.2]
[1730778128914,12.14861058,159.35,159.33,0.2]
[1730778129502,20.0,159.35,159.33,0.2]
[1730778129894,20.0,159.35,159.34,0.1]
[1730778130094,20.0,159.35,159.33,0.2]
[1730778130286,6.2758,159.34,159.33,0.2]
[1730778130687,18.42441058,159.34,159.33,0.2]
[1730778132994,18.42441058,159.34,159.33,0.1]
[1730778133395,18.42441058,159.34,159.33,0.2]
[1730778134216,18.42441058,159.34,159.33,0.1]
[1730778134597,18.42441058,159.34,159.28,22.3282]
[1730778134598,20.25098,159.32,159.31,0.1]
[1730778134792,32.39959058,159.32,159.31,0.1]
[1730778135295,12.14861058,159.32,159.31,0.2]
[1730778135497,12.14861058,159.33,159.32,0.1]
[1730778135906,12.14861058,159.33,159.32,0.2]
[1730778137215,18.42481058,159.33,159.32,0.2]
[1730778140692,18.42481058,159.33,159.32,0.1]
[1730778141512,18.42481058,159.33,159.31,0.2]
[1730778141711,6.2762,159.33,159.32,0.1]
[1730778141913,18.42481058,159.33,159.32,0.1]
[1730778142217,18.42481058,159.33,159.29,0.2]
[1730778142711,12.14861058,159.3,159.29,0.2]
[1730778143518,12.14861058,159.32,159.31,0.1]
[1730778143706,12.14861058,159.32,159.3,0.1]
[1730778143707,54.36649058,159.33,159.32,0.1]
[1730778144019,38.42481058,159.33,159.32,0.2]
[1730778144226,6.2762,159.33,159.32,0.2]
[1730778144432,25.140622,159.34,159.33,0.1]
[1730778144598,31.416522,159.34,159.33,0.2]
[1730778148031,6.2754,159.35,159.33,0.2]
[1730778148527,18.93917175,159.34,159.33,0.2]
[1730778149399,25.21497175,159.34,159.33,0.2]
[1730778151212,25.21497175,159.34,159.32,0.2]
[1730778151529,18.93917175,159.33,159.32,0.2]
[1730778152528,25.21537175,159.33,159.32,0.2]
[1730778153729,25.21537175,159.33,159.3,0.1]
[1730778153906,6.2762,159.33,159.32,0.1]
[1730778154106,26.52718,159.33,159.32,0.1]
[1730778154431,26.52718,159.33,159.31,0.1]
[1730778154605,26.52718,159.33,159.3,0.1]
[1730778155431,26.52718,159.33,159.3,0.2]
[1730778156102,26.52718,159.33,159.32,0.1]
[1730778156302,45.46635175,159.33,159.3,0.2]
[1730778156609,25.21617175,159.31,159.3,0.1]
[1730778156803,25.21617175,159.31,159.29,0.2]
[1730778157029,25.21617175,159.31,159.3,0.2]
[1730778160637,20.0,159.3,159.29,0.2]
[1730778160814,38.93917175,159.3,159.29,0.2]
[1730778161016,38.93917175,159.3,159.29,0.1]
[1730778161642,38.93917175,159.3,159.29,0.2]
[1730778161937,38.93917175,159.3,159.29,0.1]
[1730778162138,39.19015175,159.3,159.29,0.1]
[1730778162513,45.46755175,159.3,159.29,0.1]
[1730778162738,45.46755175,159.3,159.29,0.2]
[1730778165423,38.66213813,159.3,159.29,0.2]
[1730778166530,38.66213813,159.3,159.28,0.1]
[1730778166744,26.52838,159.3,159.29,0.2]
[1730778166920,38.66213813,159.3,159.29,0.2]
[1730778169347,38.66213813,159.3,159.28,0.1]
[1730778169730,38.66213813,159.3,159.27,0.1463145]
[1730778169731,106.28711213,159.29,159.27,0.1463145]
[1730778169931,12.13375813,159.28,159.27,0.1463145]
[1730778170124,12.38473813,159.28,159.27,0.1463145]
[1730778170547,104.82214465,159.28,159.27,0.0463145]
[1730778171646,111.10034465,159.28,159.27,0.0463145]
[1730778173735,111.10034465,159.28,159.27,1.45e-05]
[1730778175960,111.10034465,159.28,159.21,0.1]
[1730778175961,0.25098,159.23,159.21,0.1]
[1730778176247,12.13375813,159.22,159.21,0.1]
[1730778176451,12.38473813,159.22,159.2,0.1]
[1730778176636,12.13375813,159.21,159.2,0.1]
[1730778177348,18.41475813,159.21,159.2,0.2]
[1730778177831,6.281,159.21,159.2,0.2]
[1730778178329,18.41475813,159.21,159.2,0.2]
[1730778182571,6.281,159.21,159.2,0.2]
[1730778183368,12.13375813,159.24,159.23,0.2]
[1730778183584,6.2794,159.25,159.24,0.2]
[1730778185646,18.41315813,159.25,159.24,0.2]
[1730778187276,12.13375813,159.25,159.24,0.2]
[1730778187569,18.41315813,159.25,159.24,0.2]
[1730778188357,90.37647,159.24,159.21,0.2]
[1730778188550,32.38473813,159.22,159.21,0.2]
[1730778189352,38.66533813,159.22,159.21,0.2]
[1730778190166,38.66533813,159.22,159.21,0.1]
[1730778190975,38.66533813,159.22,159.2,0.1]
[1730778191273,18.41475813,159.21,159.2,0.2]
[1730778193156,38.41475813,159.21,159.2,0.1]
[1730778193457,38.66573813,159.21,159.2,0.1]
[1730778194058,20.25098,159.2,159.19,0.4096875]
[1730778194255,32.38473813,159.2,159.19,0.4096875]
[1730778194759,80.91977065,159.2,159.19,0.4096875]
[1730778195772,87.20117065,159.2,159.19,0.4096875]
[1730778195956,87.20117065,159.2,159.19,0.5096875]
[1730778197051,38.66613813,159.2,159.19,0.5096875]
[1730778197257,38.41515813,159.2,159.19,0.5096875]
[1730778198280,18.41475813,159.21,159.2,0.2]
[1730778198463,85.6976,159.26,159.21,0.2]
[1730778198464,12.13375813,159.22,159.21,0.2]
[1730778198666,12.13375813,159.24,159.22,0.2]
[1730778199171,6.2794,159.25,159.23,0.1]
[1730778199475,12.13375813,159.24,159.23,0.1]
[1730778200073,18.41355813,159.24,159.23,0.1]
[1730778200861,18.41355813,159.24,159.23,0.2]
[1730778207493,18.41355813,159.24,159.23,0.1]
[1730778207686,18.41355813,159.24,159.23,0.2]
[1730778209803,18.66453813,159.24,159.23,0.1]
[1730778213803,18.66453813,159.24,159.22,0.2]
[1730778213999,12.13375813,159.23,159.22,0.1]
[1730778214191,18.41395813,159.23,159.22,0.2]
[1730778221512,12.133758,159.25,159.24,0.1]
[1730778221683,12.133758,159.25,159.24,0.2]
[1730778221883,6.2787,159.27,159.24,0.2]
[1730778222305,18.41245813,159.27,159.24,0.2]
[1730778222515,18.41245813,159.27,159.26,0.1]
[1730778225311,18.41245813,159.27,159.26,0.2]
[1730778225500,18.41245813,159.27,159.26,0.1]
[1730778226187,18.41245813,159.27,159.26,0.2]
[1730778228395,6.2787,159.27,159.26,0.2]
[1730778232408,6.2787,159.27,159.26,0.1]
[1730778232605,6.2787,159.27,159.26,0.2]
[1730778239222,6.2787,159.27,159.26,0.1]
[1730778239530,6.2787,159.27,159.26,0.2]
[1730778244131,6.2787,159.27,159.26,0.1]
[1730778244308,18.66343813,159.27,159.25,0.2]
[1730778244512,12.13375813,159.26,159.25,0.1]
[1730778246634,6.279,159.26,159.25,0.1]
[1730778248617,6.279,159.26,159.25,0.2]
[1730778250610,21.5767,159.26,159.25,0.2]
[1730778250813,21.5767,159.26,159.25,0.1]
[1730778250814,21.82768,159.26,159.25,0.1]
[1730778251040,45.730054,159.26,159.25,0.2]
[1730778252241,45.730054,159.26,159.25,0.1]
[1730778252617,57.86381213,159.26,159.25,0.1]
[1730778254241,45.730054,159.26,159.25,0.1]
[1730778254442,45.730054,159.26,159.25,0.2]
[1730778256143,21.70219,159.26,159.25,0.2]
[1730778256320,6.40449,159.26,159.25,0.2]
[1730778256944,6.279,159.26,159.25,0.2]
[1730778257631,6.2782,159.28,159.27,0.2]
[1730778258150,6.2774,159.3,159.27,0.2]
[1730778258521,6.2774,159.3,159.29,0.1]
[1730778259043,6.40289,159.3,159.29,0.1]
[1730778260146,6.40289,159.3,159.29,0.2]
[1730778261034,18.53664813,159.3,159.29,0.2]
[1730778261637,6.40289,159.3,159.29,0.2]
[1730778261834,18.53664813,159.3,159.29,0.2]
[1730778264023,6.2774,159.3,159.29,0.2]
[1730778264949,18.41115813,159.3,159.29,0.2]
[1730778265559,18.41115813,159.3,159.24,22.2283]
[1730778265560,24.027864,159.28,159.27,0.1]
[1730778265844,20.0,159.27,159.25,0.1]
[1730778266028,6.279,159.26,159.25,0.2]
[1730778266228,30.432354,159.26,159.25,0.2]
[1730778267932,42.56611213,159.26,159.25,0.2]
[1730778269823,6.40449,159.26,159.25,0.2]
[1730778270350,6.279,159.26,159.25,0.2]
[1730778272449,18.41195813,159.28,159.26,0.1]
[1730778272627,18.53744813,159.28,159.27,0.1]
[1730778273832,18.53744813,159.28,159.27,0.2]
[1730778274547,18.53744813,159.28,159.23,15.0547]
[1730778274548,18.53744813,159.28,159.23,14.13469999]
[1730778274745,12.13375813,159.27,159.23,14.13469999]
[1730778275249,18.410958,159.31,159.26,12.13375813]
[1730778275452,18.410958,159.31,159.27,12.13375813]
[1730778275751,18.410958,159.31,159.26,12.13375813]
[1730778276049,30.54471613,159.31,159.26,12.13375813]
[1730778277624,30.54471613,159.31,159.26,12.13375813]
[1730778279340,6.2772,159.31,159.28,27.76905813]
[1730778281754,6.2772,159.31,159.28,15.6353]
[1730778283749,18.41095813,159.31,159.28,15.6353]
[1730778286458,12.13375813,159.3,159.28,15.6353]
[1730778288541,18.41095813,159.31,159.28,15.6353]
[1730778300798,12.13375813,159.33,159.28,27.76905813]
[1730778301074,12.13375813,159.33,159.28,34.04705813]
[1730778301576,12.13375813,159.32,159.28,21.9133]
[1730778301764,12.13375813,159.32,159.28,15.6353]
[1730778302273,12.13375813,159.33,159.28,21.9134]
[1730778302860,6.2766,159.32,159.28,21.9134]
[1730778303349,6.2766,159.32,159.28,34.04715813]
[1730778303773,12.13375813,159.35,159.3,12.13375813]
[1730778305054,18.40945813,159.35,159.3,12.13375813]
[1730778305957,18.40945813,159.35,159.3,18.41095813]
[1730778306351,6.2757,159.35,159.3,18.41095813]
[1730778306658,18.40945813,159.35,159.3,18.41095813]
[1730778306867,12.13375813,159.34,159.29,6.3777]
[1730778308178,18.40965813,159.34,159.29,6.3777]
[1730778309056,12.13375813,159.33,159.29,0.1]
[1730778309256,12.13375813,159.3,159.28,15.6353]
[1730778310361,12.13375813,159.31,159.28,15.6353]
[1730778311381,12.13375813,159.29,159.24,34.95805813]
[1730778311562,12.13375813,159.3,159.25,0.1]
[1730778311762,12.13375813,159.31,159.26,12.13375813]
[1730778312765,18.41105813,159.31,159.26,12.13375813]
[1730778313165,12.13375813,159.3,159.25,18.41285813]
[1730778313379,12.13375813,159.3,159.25,6.2791]
[1730778313791,12.13375813,159.3,159.25,18.61285813]
[1730778315982,18.41105813,159.31,159.25,18.61285813]
[1730778316186,12.13375813,159.3,159.25,12.13375813]
[1730778316390,6.2773,159.31,159.23,0.1]
[1730778316391,12.13375813,159.29,159.24,18.41325813]
[1730778316570,12.13375813,159.29,159.24,6.2795]
[1730778317264,12.13375813,159.28,159.22,12.13375813]
[1730778317466,12.13375813,159.27,159.21,28.43075813]
[1730778317673,12.13375813,159.25,159.21,16.197]
[1730778318571,12.13375813,159.26,159.21,22.4776]
[1730778318766,12.13375813,159.26,159.21,28.33075813]
[1730778319685,6.2793,159.26,159.22,12.13375813]
[1730778320766,12.13375813,159.27,159.22,12.13375813]
[1730778321688,18.41275813,159.27,159.22,12.13375813]
[1730778321891,12.13375813,159.24,159.21,16.197]
[1730778322179,12.13375813,159.23,159.21,16.197]
[1730778323189,12.13375813,159.24,159.21,16.197]
[1730778323488,12.13375813,159.23,159.19,0.3096875]
[1730778323870,18.41415813,159.23,159.19,0.3096875]
[1730778325491,6.2804,159.23,159.19,0.3096875]
[1730778326072,6.2804,159.23,159.19,12.44344563]
[1730778326409,12.13375813,159.25,159.21,12.13375813]
[1730778326410,6.2797,159.25,159.21,12.13375813]
[1730778326900,18.41345813,159.25,159.2,12.13375813]
[1730778331586,12.13375813,159.26,159.2,12.13375813]
[1730778332205,12.13375813,159.24,159.19,12.44344563]
[1730778333098,6.2802,159.23,159.19,12.44344563]
[1730778335700,6.2802,159.23,159.19,0.3096875]
[1730778337078,0.12549,159.22,159.19,0.3096875]
[1730778337383,12.13375813,159.21,159.19,0.3096875]
[1730778337877,18.41515813,159.2,159.19,0.3096875]
[1730778338101,18.54064813,159.2,159.19,0.3096875]
[1730778338478,6.2814,159.2,159.19,0.3096875]
[1730778338683,51.60834213,159.26,159.19,12.44344563]
[1730778338905,6.2794,159.25,159.21,12.13375813]
[1730778339513,6.2794,159.25,159.2,12.13375813]
[1730778340000,18.41315813,159.25,159.19,12.44344563]
[1730778341505,6.2794,159.25,159.19,12.44344563]
[1730778342889,6.2802,159.23,159.19,0.3096875]
[1730778344185,12.13375813,159.25,159.19,0.3096875]
[1730778344507,6.2794,159.25,159.2,12.13375813]
[1730778344718,18.41315813,159.25,159.19,28.52964563]
[1730778345225,6.2794,159.25,159.19,28.52964563]
[1730778345907,18.41315813,159.25,159.19,28.52964563]
[1730778346610,12.13375813,159.24,159.19,16.3958875]
[1730778346913,6.2802,159.23,159.19,16.3958875]
[1730778347895,18.41395813,159.23,159.19,0.3096875]
[1730778348098,12.13375813,159.22,159.19,0.3096875]
[1730778348299,0.12549,159.26,159.21,12.13375813]
[1730778348497,0.12549,159.26,159.19,6.5912875]
[1730778348498,6.40449,159.26,159.22,12.13375813]
[1730778349495,6.40449,159.26,159.21,12.13375813]
[1730778349917,13.22679602,159.3,159.24,12.13375813]
[1730778350085,6.2778,159.29,159.25,12.13375813]
[1730778350289,6.2778,159.29,159.24,12.13375813]
[1730778351009,6.2778,159.29,159.25,12.13375813]
[1730778351222,12.13375813,159.33,159.28,12.13375813]
[1730778351424,12.13375813,159.35,159.29,12.13375813]
[1730778351591,18.40915813,159.35,159.3,12.13375813]
[1730778351895,18.40915813,159.35,159.29,12.13375813]
[1730778352095,12.13375813,159.34,159.29,12.13375813]
[1730778353416,18.40995813,159.34,159.29,12.13375813]
[1730778355499,12.13375813,159.33,159.27,18.41235813]
[1730778356607,18.41035813,159.33,159.28,12.13375813]
[1730778357714,18.41035813,159.33,159.26,15.6966]
[1730778357715,12.13375813,159.31,159.26,15.6966]
[1730778357930,12.13375813,159.3,159.25,28.68905813]
[1730778359015,12.13375813,159.3,159.25,16.5553]
[1730778359827,6.2778,159.29,159.25,16.5553]
[1730778362025,6.2778,159.29,159.25,28.68905813]
[1730778362732,18.41155813,159.29,159.25,16.5553]
[1730778363435,6.2778,159.29,159.25,16.5553]
[1730778365928,85.6907,159.33,159.25,34.96845813]
[1730778365929,12.13375813,159.31,159.25,34.96845813]
[1730778366130,12.13375813,159.33,159.27,12.13375813]